[Event "*** SCC Grand Prix: Titled Tuesday Blitz"]
[Site "Chess.com"]
[Date "2020.10.06"]
[Round "3"]
[White "Legendinunknown"]
[Black "Mostii"]
[Result "1-0"]
[WhiteElo "2641"]
[BlackElo "2426"]
[TimeControl "180+1"]
[EndTime "10:25:24 PDT"]
[Termination "Legendinunknown won by resignation"]

1. e4 {[%clk 0:03:00.9]} 1... e6 {[%clk 0:03:00.9]} 2. d4 {[%clk 0:03:00.1]}
2... d5 {[%clk 0:03:00.4]} 3. Bd3 {[%clk 0:03:00.5]} 3... c5 {[%clk 0:02:51.5]}
4. exd5 {[%clk 0:02:58.2]} 4... exd5 {[%clk 0:02:51.1]} 5. Qe2+ {[%clk
0:02:58.1]} 5... Be7 {[%clk 0:02:50.2]} 6. dxc5 {[%clk 0:02:57.6]} 6... Nf6
{[%clk 0:02:48.3]} 7. Nf3 {[%clk 0:02:56]} 7... O-O {[%clk 0:02:48.2]} 8. O-O
{[%clk 0:02:55.2]} 8... Bxc5 {[%clk 0:02:48]} 9. Bg5 {[%clk 0:02:54.6]} 9... Bg4
{[%clk 0:02:47.3]} 10. h3 {[%clk 0:02:52]} 10... Bh5 {[%clk 0:02:46.1]} 11. Nbd2
{[%clk 0:02:50.7]} 11... Nc6 {[%clk 0:02:45.4]} 12. c3 {[%clk 0:02:46]} 12...
Re8 {[%clk 0:02:45.2]} 13. Qd1 {[%clk 0:02:46.1]} 13... Bg6 {[%clk 0:02:42.6]}
14. Qc2 {[%clk 0:02:43]} 14... d4 {[%clk 0:02:38.4]} 15. Nb3 {[%clk 0:02:38.9]}
15... Bb6 {[%clk 0:02:38.3]} 16. Bxg6 {[%clk 0:02:36]} 16... hxg6 {[%clk
0:02:36.5]} 17. cxd4 {[%clk 0:02:34.4]} 17... Rc8 {[%clk 0:02:18.8]} 18. Qd3
{[%clk 0:02:22.8]} 18... Nb4 {[%clk 0:02:17.2]} 19. Qd2 {[%clk 0:02:20.7]} 19...
Ne4 {[%clk 0:02:06.1]} 20. Qxb4 {[%clk 0:01:36.4]} 20... Nxg5 {[%clk 0:02:04.1]}
21. Nxg5 {[%clk 0:01:37.3]} 21... Qxg5 {[%clk 0:02:04]} 22. Rae1 {[%clk
0:01:35]} 22... Rxe1 {[%clk 0:01:43]} 23. Rxe1 {[%clk 0:01:35.9]} 23... Rc2
{[%clk 0:01:42.7]} 24. Qd6 {[%clk 0:01:20.6]} 24... Rxb2 {[%clk 0:01:23.5]} 25.
Qb8+ {[%clk 0:00:42.5]} 1-0

[Event "*** SCC Grand Prix: Titled Tuesday Blitz"]
[Site "Chess.com"]
[Date "2020.10.06"]
[Round "3"]
[White "Lagmantr"]
[Black "Bastiandash"]
[Result "1-0"]
[WhiteElo "2645"]
[BlackElo "2277"]
[TimeControl "180+1"]
[EndTime "10:25:25 PDT"]
[Termination "Lagmantr won by checkmate"]

1. Nf3 {[%clk 0:03:00.6]} 1... Nf6 {[%clk 0:02:56.4]} 2. c4 {[%clk 0:03:01.1]}
2... e6 {[%clk 0:02:56.9]} 3. b3 {[%clk 0:03:01.3]} 3... d5 {[%clk 0:02:57.2]}
4. Bb2 {[%clk 0:03:01.4]} 4... c5 {[%clk 0:02:57.5]} 5. g3 {[%clk 0:03:01.7]}
5... Nc6 {[%clk 0:02:57]} 6. Bg2 {[%clk 0:03:01.9]} 6... Be7 {[%clk 0:02:54.5]}
7. O-O {[%clk 0:03:02.2]} 7... O-O {[%clk 0:02:54.8]} 8. cxd5 {[%clk 0:03:02.4]}
8... Nxd5 {[%clk 0:02:53]} 9. d4 {[%clk 0:03:01.8]} 9... Bf6 {[%clk 0:02:53.2]}
10. e4 {[%clk 0:02:59.1]} 10... Nc7 {[%clk 0:02:32.9]} 11. e5 {[%clk 0:02:56.5]}
11... Be7 {[%clk 0:02:32.4]} 12. dxc5 {[%clk 0:02:55.9]} 12... Bxc5 {[%clk
0:02:31.5]} 13. Nbd2 {[%clk 0:02:55.4]} 13... Nb8 {[%clk 0:02:18.1]} 14. Ne4
{[%clk 0:02:54.2]} 14... Be7 {[%clk 0:02:17.7]} 15. Rc1 {[%clk 0:02:53.6]} 15...
Nc6 {[%clk 0:02:16.9]} 16. h4 {[%clk 0:02:44.1]} 16... Nd5 {[%clk 0:02:09.6]}
17. h5 {[%clk 0:02:36.6]} 17... Qe8 {[%clk 0:01:55.8]} 18. h6 {[%clk 0:02:31.4]}
18... g6 {[%clk 0:01:45.5]} 19. Qe2 {[%clk 0:02:23.4]} 19... Bd7 {[%clk
0:01:43.6]} 20. Rfd1 {[%clk 0:02:22.9]} 20... Rc8 {[%clk 0:01:42.9]} 21. Nd6
{[%clk 0:02:22.2]} 21... Bxd6 {[%clk 0:01:39.6]} 22. exd6 {[%clk 0:02:23.1]}
22... f6 {[%clk 0:01:34.2]} 23. Nd4 {[%clk 0:02:20.7]} 23... Nxd4 {[%clk
0:01:22.8]} 24. Bxd4 {[%clk 0:02:21.6]} 24... Nb6 {[%clk 0:01:12.8]} 25. Bxb7
{[%clk 0:02:18.5]} 25... Rxc1 {[%clk 0:01:08.6]} 26. Rxc1 {[%clk 0:02:19.4]}
26... Qb8 {[%clk 0:01:09.1]} 27. Rc7 {[%clk 0:02:15.4]} 27... Qd8 {[%clk
0:00:30.8]} 28. Bc6 {[%clk 0:02:05.6]} 28... e5 {[%clk 0:00:23.7]} 29. Bxb6
{[%clk 0:02:02.8]} 29... axb6 {[%clk 0:00:20.2]} 30. Rxd7 {[%clk 0:02:00.1]}
30... Qc8 {[%clk 0:00:20.2]} 31. Qc4+ {[%clk 0:02:00]} 31... Kh8 {[%clk
0:00:19.9]} 32. Qe6 {[%clk 0:01:58.3]} 32... Qxc6 {[%clk 0:00:14.5]} 33. Qxf6+
{[%clk 0:01:58.4]} 33... Rxf6 {[%clk 0:00:15.4]} 34. Rd8+ {[%clk 0:01:58.6]}
34... Rf8 {[%clk 0:00:15.6]} 35. Rxf8# {[%clk 0:01:58.7]} 1-0

[Event "*** SCC Grand Prix: Titled Tuesday Blitz"]
[Site "Chess.com"]
[Date "2020.10.06"]
[Round "3"]
[White "chenxiaoyuer"]
[Black "MITerryble"]
[Result "0-1"]
[WhiteElo "2475"]
[BlackElo "2960"]
[TimeControl "180+1"]
[EndTime "10:25:26 PDT"]
[Termination "MITerryble won by resignation"]

1. e4 {[%clk 0:03:00.9]} 1... e6 {[%clk 0:03:00.2]} 2. d4 {[%clk 0:03:00.3]}
2... d5 {[%clk 0:03:00.7]} 3. Nd2 {[%clk 0:03:00.2]} 3... Be7 {[%clk 0:03:00.7]}
4. Ngf3 {[%clk 0:02:58.3]} 4... Nf6 {[%clk 0:03:01]} 5. e5 {[%clk 0:02:58.5]}
5... Nfd7 {[%clk 0:03:01.3]} 6. Bd3 {[%clk 0:02:58.8]} 6... c5 {[%clk
0:03:02.2]} 7. c3 {[%clk 0:02:58.7]} 7... Nc6 {[%clk 0:03:03.1]} 8. O-O {[%clk
0:02:57.2]} 8... g5 {[%clk 0:03:03.2]} 9. dxc5 {[%clk 0:02:55.9]} 9... g4 {[%clk
0:03:03]} 10. Nd4 {[%clk 0:02:54.5]} 10... Ncxe5 {[%clk 0:03:03.5]} 11. Bb5
{[%clk 0:01:43.2]} 11... a6 {[%clk 0:02:36.9]} 12. Bxd7+ {[%clk 0:01:38.5]}
12... Bxd7 {[%clk 0:02:29.5]} 13. Qe2 {[%clk 0:01:25.6]} 13... Ng6 {[%clk
0:02:22.5]} 14. f4 {[%clk 0:00:59]} 14... gxf3 {[%clk 0:02:16.8]} 15. Qxf3
{[%clk 0:00:54.7]} 15... f5 {[%clk 0:02:14.3]} 16. N2b3 {[%clk 0:00:45.3]} 16...
O-O {[%clk 0:02:08.6]} 17. Re1 {[%clk 0:00:38.3]} 17... Qc8 {[%clk 0:02:08.4]}
18. Kh1 {[%clk 0:00:26.9]} 18... Rf7 {[%clk 0:02:06.8]} 19. Bf4 {[%clk
0:00:19.8]} 19... Bf6 {[%clk 0:02:06.9]} 20. Bd6 {[%clk 0:00:18.6]} 20... e5
{[%clk 0:02:07.1]} 21. Ne2 {[%clk 0:00:09.8]} 21... Be6 {[%clk 0:02:04.9]} 22.
Rad1 {[%clk 0:00:08.7]} 22... Nh4 {[%clk 0:02:00]} 23. Qf2 {[%clk 0:00:08.6]}
23... Ng6 {[%clk 0:01:56.6]} 24. Ng3 {[%clk 0:00:06.4]} 24... Bh4 {[%clk
0:01:52.9]} 25. Qf3 {[%clk 0:00:05.2]} 25... f4 {[%clk 0:01:52.9]} 26. Rxd5
{[%clk 0:00:02.2]} 26... fxg3 {[%clk 0:01:50.2]} 27. Qe4 {[%clk 0:00:02.2]}
27... Bxd5 {[%clk 0:01:49.3]} 28. Qxd5 {[%clk 0:00:03.1]} 0-1

[Event "*** SCC Grand Prix: Titled Tuesday Blitz"]
[Site "Chess.com"]
[Date "2020.10.06"]
[Round "3"]
[White "pastouche06"]
[Black "SergeyKarjakin"]
[Result "0-1"]
[WhiteElo "2475"]
[BlackElo "2931"]
[TimeControl "180+1"]
[EndTime "10:25:27 PDT"]
[Termination "SergeyKarjakin won by checkmate"]

1. d4 {[%clk 0:03:00.9]} 1... Nf6 {[%clk 0:02:59.2]} 2. c4 {[%clk 0:02:46.4]}
2... c5 {[%clk 0:02:58.9]} 3. d5 {[%clk 0:02:45.4]} 3... b5 {[%clk 0:02:59.5]}
4. cxb5 {[%clk 0:02:45]} 4... a6 {[%clk 0:03:00.2]} 5. bxa6 {[%clk 0:02:44.8]}
5... g6 {[%clk 0:03:00.9]} 6. Nc3 {[%clk 0:02:44.9]} 6... Bxa6 {[%clk
0:03:01.3]} 7. e4 {[%clk 0:02:45.2]} 7... Bxf1 {[%clk 0:03:02]} 8. Kxf1 {[%clk
0:02:46.1]} 8... d6 {[%clk 0:03:02.6]} 9. g3 {[%clk 0:02:44.8]} 9... Bg7 {[%clk
0:03:03]} 10. Kg2 {[%clk 0:02:44.7]} 10... O-O {[%clk 0:03:03.8]} 11. Nf3 {[%clk
0:02:45.2]} 11... Nbd7 {[%clk 0:03:04.7]} 12. a4 {[%clk 0:02:45.5]} 12... Qa5
{[%clk 0:02:57.9]} 13. Bd2 {[%clk 0:02:44.1]} 13... Rfb8 {[%clk 0:02:56.6]} 14.
Nb5 {[%clk 0:02:42.7]} 14... Qd8 {[%clk 0:02:50.7]} 15. Qc2 {[%clk 0:02:34.6]}
15... Ne8 {[%clk 0:02:49.3]} 16. Bc3 {[%clk 0:02:33]} 16... Nc7 {[%clk
0:02:48.8]} 17. Nxc7 {[%clk 0:02:29.9]} 17... Qxc7 {[%clk 0:02:48.4]} 18. Bxg7
{[%clk 0:02:30.5]} 18... Kxg7 {[%clk 0:02:49.3]} 19. Nd4 {[%clk 0:02:30.4]}
19... Qb6 {[%clk 0:02:37.5]} 20. Nb5 {[%clk 0:02:23.2]} 20... Qa5 {[%clk
0:02:34.9]} 21. h4 {[%clk 0:01:55.9]} 21... h5 {[%clk 0:02:33.3]} 22. b3 {[%clk
0:01:35.4]} 22... Qb4 {[%clk 0:02:31.4]} 23. Rac1 {[%clk 0:01:21.9]} 23... Ne5
{[%clk 0:02:25.8]} 24. f4 {[%clk 0:01:03.1]} 24... Ng4 {[%clk 0:02:23.4]} 25.
Kf3 {[%clk 0:01:01.7]} 25... f6 {[%clk 0:01:57.4]} 26. Qc3 {[%clk 0:00:55.5]}
26... Rxb5 {[%clk 0:01:50.2]} 27. axb5 {[%clk 0:00:56.4]} 27... Ra2 {[%clk
0:01:49.6]} 28. Qxb4 {[%clk 0:00:06.4]} 28... Rf2# {[%clk 0:01:47.8]} 0-1

[Event "*** SCC Grand Prix: Titled Tuesday Blitz"]
[Site "Chess.com"]
[Date "2020.10.06"]
[Round "3"]
[White "TudorAnton"]
[Black "gumimis"]
[Result "1-0"]
[WhiteElo "2503"]
[BlackElo "2251"]
[TimeControl "180+1"]
[EndTime "10:25:30 PDT"]
[Termination "TudorAnton won by checkmate"]

1. e4 {[%clk 0:03:00.2]} 1... c5 {[%clk 0:02:58.7]} 2. Nf3 {[%clk 0:02:59.2]}
2... d6 {[%clk 0:02:59.1]} 3. d4 {[%clk 0:02:56.8]} 3... cxd4 {[%clk 0:03:00]}
4. Nxd4 {[%clk 0:02:57.3]} 4... Nf6 {[%clk 0:03:00.3]} 5. Nc3 {[%clk 0:02:56.4]}
5... a6 {[%clk 0:03:00.2]} 6. Bg5 {[%clk 0:02:55]} 6... e6 {[%clk 0:02:58.1]} 7.
f4 {[%clk 0:02:55]} 7... h6 {[%clk 0:02:56.9]} 8. Bh4 {[%clk 0:02:54.6]} 8...
Qb6 {[%clk 0:02:56.9]} 9. e5 {[%clk 0:02:49.1]} 9... dxe5 {[%clk 0:02:34.8]} 10.
fxe5 {[%clk 0:02:48.8]} 10... Qxb2 {[%clk 0:01:51.6]} 11. Na4 {[%clk 0:02:47.6]}
11... Bb4+ {[%clk 0:01:46.4]} 12. Kf2 {[%clk 0:02:46.2]} 12... Ne4+ {[%clk
0:01:39.4]} 13. Kg1 {[%clk 0:02:46.4]} 13... Qa3 {[%clk 0:01:28.5]} 14. Bd3
{[%clk 0:02:46.1]} 14... Nc3 {[%clk 0:00:42.3]} 15. Nxc3 {[%clk 0:02:44.9]}
15... Bxc3 {[%clk 0:00:42.6]} 16. Nf3 {[%clk 0:02:33]} 16... Bxa1 {[%clk
0:00:39.1]} 17. Qxa1 {[%clk 0:02:33.8]} 17... O-O {[%clk 0:00:37.2]} 18. Bf2
{[%clk 0:02:27.2]} 18... Nc6 {[%clk 0:00:32.7]} 19. h4 {[%clk 0:02:26.9]} 19...
f6 {[%clk 0:00:25.1]} 20. exf6 {[%clk 0:02:26.4]} 20... Rxf6 {[%clk 0:00:25.5]}
21. h5 {[%clk 0:02:26.3]} 21... e5 {[%clk 0:00:20.1]} 22. Rh4 {[%clk 0:02:26.8]}
22... Bf5 {[%clk 0:00:17.9]} 23. Bc4+ {[%clk 0:02:25.3]} 23... Kh8 {[%clk
0:00:17.9]} 24. Bb3 {[%clk 0:02:23.8]} 24... e4 {[%clk 0:00:17.8]} 25. Nd4
{[%clk 0:02:21.4]} 25... Raf8 {[%clk 0:00:16.7]} 26. Nxc6 {[%clk 0:02:20.3]}
26... bxc6 {[%clk 0:00:16.7]} 27. Bd4 {[%clk 0:02:20.9]} 27... Rd6 {[%clk
0:00:14.9]} 28. Bxg7+ {[%clk 0:02:20.5]} 28... Kh7 {[%clk 0:00:15.2]} 29. Bxf8
{[%clk 0:02:20.8]} 29... Qc5+ {[%clk 0:00:14]} 30. Kh1 {[%clk 0:02:20]} 30...
Rd1+ {[%clk 0:00:13.7]} 31. Qxd1 {[%clk 0:02:18.6]} 31... Qxf8 {[%clk
0:00:14.5]} 32. Rf4 {[%clk 0:02:17.1]} 32... Qc5 {[%clk 0:00:12.3]} 33. Qf1
{[%clk 0:02:13.3]} 33... e3 {[%clk 0:00:10.2]} 34. Rxf5 {[%clk 0:02:12.3]} 34...
e2 {[%clk 0:00:10.6]} 35. Rf7+ {[%clk 0:02:12.3]} 35... Kg8 {[%clk 0:00:11.2]}
36. Rf8+ {[%clk 0:02:11.6]} 36... Kg7 {[%clk 0:00:11.9]} 37. Qf7# {[%clk
0:02:12.5]} 1-0

[Event "*** SCC Grand Prix: Titled Tuesday Blitz"]
[Site "Chess.com"]
[Date "2020.10.06"]
[Round "3"]
[White "m_ezat"]
[Black "emiliocordova"]
[Result "0-1"]
[WhiteElo "2550"]
[BlackElo "2784"]
[TimeControl "180+1"]
[EndTime "10:25:35 PDT"]
[Termination "emiliocordova won on time"]

1. d4 {[%clk 0:03:00.9]} 1... Nf6 {[%clk 0:02:59.7]} 2. c4 {[%clk 0:03:00.3]}
2... e6 {[%clk 0:03:00]} 3. Nc3 {[%clk 0:02:59.3]} 3... Bb4 {[%clk 0:03:00]} 4.
e3 {[%clk 0:02:58.8]} 4... O-O {[%clk 0:02:59.7]} 5. a3 {[%clk 0:02:57.6]} 5...
Bxc3+ {[%clk 0:02:59.1]} 6. bxc3 {[%clk 0:02:57.5]} 6... d5 {[%clk 0:02:55.1]}
7. cxd5 {[%clk 0:02:55.8]} 7... exd5 {[%clk 0:02:55]} 8. Bd3 {[%clk 0:02:55.8]}
8... b6 {[%clk 0:02:48.3]} 9. f3 {[%clk 0:02:55.5]} 9... Ba6 {[%clk 0:02:48.3]}
10. Ne2 {[%clk 0:02:55.7]} 10... Bxd3 {[%clk 0:02:47.5]} 11. Qxd3 {[%clk
0:02:53.5]} 11... Re8 {[%clk 0:02:48]} 12. O-O {[%clk 0:02:52.2]} 12... c5
{[%clk 0:02:47.2]} 13. Ng3 {[%clk 0:02:51.3]} 13... Nc6 {[%clk 0:02:46.6]} 14.
Ra2 {[%clk 0:02:51.4]} 14... Rc8 {[%clk 0:02:44.5]} 15. Raf2 {[%clk 0:02:46.5]}
15... Rc7 {[%clk 0:02:27.3]} 16. Bb2 {[%clk 0:02:42.8]} 16... Na5 {[%clk
0:02:00.1]} 17. e4 {[%clk 0:02:31.1]} 17... cxd4 {[%clk 0:01:57.4]} 18. cxd4
{[%clk 0:02:30.3]} 18... dxe4 {[%clk 0:01:50.3]} 19. fxe4 {[%clk 0:02:29.7]}
19... Ng4 {[%clk 0:01:50.6]} 20. Rf3 {[%clk 0:01:55.2]} 20... Nc4 {[%clk
0:01:28.1]} 0-1

[Event "*** SCC Grand Prix: Titled Tuesday Blitz"]
[Site "Chess.com"]
[Date "2020.10.06"]
[Round "3"]
[White "ClydeHillKid"]
[Black "akanga001"]
[Result "0-1"]
[WhiteElo "2333"]
[BlackElo "1881"]
[TimeControl "180+1"]
[EndTime "10:25:36 PDT"]
[Termination "akanga001 won by resignation"]

1. e4 {[%clk 0:02:59.4]} 1... e5 {[%clk 0:02:47.1]} 2. Nf3 {[%clk 0:02:57.5]}
2... Nc6 {[%clk 0:02:47.5]} 3. Bc4 {[%clk 0:02:54.9]} 3... Nf6 {[%clk
0:02:46.8]} 4. d3 {[%clk 0:02:54.8]} 4... Bc5 {[%clk 0:02:45.2]} 5. c3 {[%clk
0:02:53.7]} 5... d6 {[%clk 0:02:44.8]} 6. Nbd2 {[%clk 0:02:50.7]} 6... O-O
{[%clk 0:02:42.5]} 7. h3 {[%clk 0:02:47.2]} 7... Be6 {[%clk 0:02:41.4]} 8. O-O
{[%clk 0:02:44.8]} 8... a6 {[%clk 0:02:39.3]} 9. Bxe6 {[%clk 0:02:39.3]} 9...
fxe6 {[%clk 0:02:38]} 10. Qb3 {[%clk 0:02:39.8]} 10... Qe8 {[%clk 0:02:21.8]}
11. Qxb7 {[%clk 0:02:34.9]} 11... d5 {[%clk 0:02:01.9]} 12. Qb3 {[%clk
0:02:11.8]} 12... Rb8 {[%clk 0:01:56.9]} 13. Qa4 {[%clk 0:02:08.5]} 13... Nh5
{[%clk 0:01:46.6]} 14. b4 {[%clk 0:02:05]} 14... Bb6 {[%clk 0:01:33.8]} 15. Qxa6
{[%clk 0:01:51.5]} 15... Qg6 {[%clk 0:01:30.6]} 16. Kh1 {[%clk 0:01:16.6]} 16...
Nf4 {[%clk 0:01:29.2]} 17. Ne1 {[%clk 0:01:15.2]} 17... Qh5 {[%clk 0:01:20.1]}
18. Ndf3 {[%clk 0:00:47.5]} 18... Nxh3 {[%clk 0:01:17.2]} 19. gxh3 {[%clk
0:00:46.1]} 19... Qxh3+ {[%clk 0:01:17]} 20. Nh2 {[%clk 0:00:43.5]} 20... Bxf2
{[%clk 0:00:55.4]} 21. Qb6 {[%clk 0:00:38.7]} 21... Bxb6 {[%clk 0:00:51.7]} 0-1

[Event "*** SCC Grand Prix: Titled Tuesday Blitz"]
[Site "Chess.com"]
[Date "2020.10.06"]
[Round "3"]
[White "mitrabhaa"]
[Black "LedakovAlexandr"]
[Result "1-0"]
[WhiteElo "2683"]
[BlackElo "2440"]
[TimeControl "180+1"]
[EndTime "10:25:40 PDT"]
[Termination "mitrabhaa won by resignation"]

1. Nf3 {[%clk 0:02:45.3]} 1... Nc6 {[%clk 0:03:00.9]} 2. d4 {[%clk 0:02:44.7]}
2... d6 {[%clk 0:02:59.3]} 3. c4 {[%clk 0:02:44.8]} 3... g6 {[%clk 0:02:59.6]}
4. h4 {[%clk 0:02:44.2]} 4... Nf6 {[%clk 0:02:58.2]} 5. Bg5 {[%clk 0:02:42.1]}
5... Bg7 {[%clk 0:02:56]} 6. Bxf6 {[%clk 0:02:42.3]} 6... Bxf6 {[%clk
0:02:54.8]} 7. h5 {[%clk 0:02:42.7]} 7... g5 {[%clk 0:02:53.8]} 8. e3 {[%clk
0:02:42.1]} 8... h6 {[%clk 0:02:36.1]} 9. Nc3 {[%clk 0:02:41.6]} 9... Bg7 {[%clk
0:02:21]} 10. Bd3 {[%clk 0:02:39.4]} 10... e6 {[%clk 0:02:19.5]} 11. a3 {[%clk
0:02:35.5]} 11... f5 {[%clk 0:02:14.6]} 12. Qc2 {[%clk 0:02:22.7]} 12... O-O
{[%clk 0:02:13.9]} 13. O-O-O {[%clk 0:02:18]} 13... Bd7 {[%clk 0:02:09.7]} 14.
Qe2 {[%clk 0:02:10.3]} 14... a5 {[%clk 0:01:59.8]} 15. g4 {[%clk 0:02:09.1]}
15... a4 {[%clk 0:01:27.1]} 16. Nd2 {[%clk 0:01:57.6]} 16... Na5 {[%clk
0:00:36.3]} 17. Rhg1 {[%clk 0:01:55.4]} 17... f4 {[%clk 0:00:12.3]} 18. Bb1
{[%clk 0:01:50.5]} 18... f3 {[%clk 0:00:07.5]} 19. Qd3 {[%clk 0:01:50.4]} 19...
Rf6 {[%clk 0:00:04]} 20. Qh7+ {[%clk 0:01:49.5]} 20... Kf8 {[%clk 0:00:04.3]}
21. Bg6 {[%clk 0:01:48.1]} 21... Nb3+ {[%clk 0:00:03.2]} 22. Nxb3 {[%clk
0:01:48.1]} 22... axb3 {[%clk 0:00:04.1]} 23. Ne4 {[%clk 0:01:49]} 23... Qe7
{[%clk 0:00:04.1]} 24. Nxf6 {[%clk 0:01:48.2]} 24... Qxf6 {[%clk 0:00:05]} 25.
Rg3 {[%clk 0:01:48.8]} 25... Ke7 {[%clk 0:00:02.8]} 26. Be4 {[%clk 0:01:49]}
26... Rh8 {[%clk 0:00:03.2]} 27. Qg6 {[%clk 0:01:49]} 27... Qxg6 {[%clk
0:00:04.1]} 28. hxg6 {[%clk 0:01:49.4]} 28... c6 {[%clk 0:00:04.3]} 29. Rxf3
{[%clk 0:01:49.9]} 29... d5 {[%clk 0:00:04.6]} 30. Rf7+ {[%clk 0:01:49.8]} 30...
Ke8 {[%clk 0:00:05.1]} 31. Rxg7 {[%clk 0:01:50.2]} 31... dxe4 {[%clk 0:00:05.4]}
32. Rh1 {[%clk 0:01:50.8]} 1-0

[Event "*** SCC Grand Prix: Titled Tuesday Blitz"]
[Site "Chess.com"]
[Date "2020.10.06"]
[Round "3"]
[White "IsaacWiebe"]
[Black "DariaVoit"]
[Result "0-1"]
[WhiteElo "2227"]
[BlackElo "2502"]
[TimeControl "180+1"]
[EndTime "10:25:41 PDT"]
[Termination "DariaVoit won by resignation"]

1. e4 {[%clk 0:03:00.9]} 1... Nf6 {[%clk 0:02:59.2]} 2. e5 {[%clk 0:03:00.5]}
2... Nd5 {[%clk 0:02:59.7]} 3. c4 {[%clk 0:03:00.9]} 3... Nb6 {[%clk 0:02:59]}
4. d4 {[%clk 0:03:01.8]} 4... d6 {[%clk 0:02:59.4]} 5. f4 {[%clk 0:03:02.3]}
5... dxe5 {[%clk 0:02:58.7]} 6. fxe5 {[%clk 0:03:03.2]} 6... c5 {[%clk
0:02:58.7]} 7. d5 {[%clk 0:03:01.7]} 7... e6 {[%clk 0:02:50.7]} 8. Nf3 {[%clk
0:03:01.7]} 8... exd5 {[%clk 0:02:48.3]} 9. cxd5 {[%clk 0:02:06.3]} 9... Qxd5
{[%clk 0:02:49.2]} 10. Qc2 {[%clk 0:02:04.5]} 10... Bg4 {[%clk 0:02:39.8]} 11.
Nc3 {[%clk 0:02:01.8]} 11... Qe6 {[%clk 0:02:32.7]} 12. Bf4 {[%clk 0:01:15.3]}
12... Nc6 {[%clk 0:01:39.4]} 13. Bb5 {[%clk 0:01:04.1]} 13... Be7 {[%clk
0:01:31.8]} 14. O-O {[%clk 0:00:47]} 14... O-O {[%clk 0:01:30.3]} 15. Rae1
{[%clk 0:00:35.6]} 15... Bxf3 {[%clk 0:01:26.2]} 16. gxf3 {[%clk 0:00:30.1]}
16... Nd4 {[%clk 0:01:26.2]} 17. Qe4 {[%clk 0:00:24.4]} 17... Qg6+ {[%clk
0:01:11.5]} 18. Qxg6 {[%clk 0:00:24]} 18... fxg6 {[%clk 0:01:10.6]} 19. Ne2
{[%clk 0:00:13.4]} 19... Nxe2+ {[%clk 0:01:09]} 0-1

[Event "*** SCC Grand Prix: Titled Tuesday Blitz"]
[Site "Chess.com"]
[Date "2020.10.06"]
[Round "3"]
[White "manitodeplomo"]
[Black "ViktoriyaTarasova"]
[Result "1-0"]
[WhiteElo "2574"]
[BlackElo "2276"]
[TimeControl "180+1"]
[EndTime "10:25:41 PDT"]
[Termination "manitodeplomo won by resignation"]

1. d4 {[%clk 0:03:00.9]} 1... Nf6 {[%clk 0:02:59.2]} 2. c4 {[%clk 0:02:58.9]}
2... e6 {[%clk 0:02:59.5]} 3. Nf3 {[%clk 0:02:57.8]} 3... b6 {[%clk 0:02:58.7]}
4. g3 {[%clk 0:02:55.8]} 4... Ba6 {[%clk 0:02:58.3]} 5. Qc2 {[%clk 0:02:53.1]}
5... c5 {[%clk 0:02:57.5]} 6. d5 {[%clk 0:02:49.5]} 6... exd5 {[%clk 0:02:55.3]}
7. cxd5 {[%clk 0:02:50.4]} 7... Bb7 {[%clk 0:02:55.4]} 8. Bg2 {[%clk 0:02:49.7]}
8... Nxd5 {[%clk 0:02:54.5]} 9. O-O {[%clk 0:02:48.6]} 9... Be7 {[%clk
0:02:53.5]} 10. Ne5 {[%clk 0:02:48.2]} 10... Qc7 {[%clk 0:02:19.5]} 11. Qe4
{[%clk 0:02:38.7]} 11... Bc6 {[%clk 0:01:21.4]} 12. Nxc6 {[%clk 0:02:36.3]}
12... dxc6 {[%clk 0:01:20.1]} 13. Nc3 {[%clk 0:02:36.6]} 13... Nxc3 {[%clk
0:01:12.7]} 14. bxc3 {[%clk 0:02:37.5]} 14... O-O {[%clk 0:01:08.9]} 15. Rd1
{[%clk 0:02:37.6]} 15... Bf6 {[%clk 0:00:59.7]} 16. Bf4 {[%clk 0:02:35.4]} 16...
Qb7 {[%clk 0:00:52.8]} 17. Rd3 {[%clk 0:02:32.2]} 17... Na6 {[%clk 0:00:43.2]}
18. Rad1 {[%clk 0:02:31.1]} 18... Rae8 {[%clk 0:00:38]} 19. Qa4 {[%clk
0:02:15.3]} 19... b5 {[%clk 0:00:36.5]} 20. Qa5 {[%clk 0:02:14]} 20... Qb6
{[%clk 0:00:30.2]} 21. Qxb6 {[%clk 0:02:06.8]} 21... axb6 {[%clk 0:00:30.4]} 22.
Bxc6 {[%clk 0:02:07]} 22... Rxe2 {[%clk 0:00:30.2]} 23. Bxb5 {[%clk 0:02:07.4]}
23... Rxa2 {[%clk 0:00:23.4]} 24. Rd7 {[%clk 0:02:03]} 24... Ra5 {[%clk
0:00:18.5]} 25. Bc4 {[%clk 0:01:50.6]} 25... g5 {[%clk 0:00:18.4]} 26. Bd6
{[%clk 0:01:50]} 26... Nb8 {[%clk 0:00:13.3]} 27. Rb7 {[%clk 0:01:45.3]} 27...
Ra4 {[%clk 0:00:04.9]} 28. Bxf8 {[%clk 0:01:40.9]} 28... Rxc4 {[%clk 0:00:04.6]}
29. Rxb8 {[%clk 0:01:40.4]} 1-0

[Event "*** SCC Grand Prix: Titled Tuesday Blitz"]
[Site "Chess.com"]
[Date "2020.10.06"]
[Round "3"]
[White "rpragchess"]
[Black "Witik"]
[Result "1-0"]
[WhiteElo "2930"]
[BlackElo "2706"]
[TimeControl "180+1"]
[EndTime "10:25:47 PDT"]
[Termination "rpragchess won by resignation"]

1. Nf3 {[%clk 0:03:00.9]} 1... d5 {[%clk 0:02:59.2]} 2. g3 {[%clk 0:02:54]} 2...
c6 {[%clk 0:02:59.2]} 3. Bg2 {[%clk 0:02:53]} 3... Bg4 {[%clk 0:02:59.7]} 4. O-O
{[%clk 0:02:53.6]} 4... Nd7 {[%clk 0:02:59.8]} 5. d3 {[%clk 0:02:53.7]} 5...
Ngf6 {[%clk 0:02:58.8]} 6. h3 {[%clk 0:02:53.3]} 6... Bh5 {[%clk 0:02:58.8]} 7.
Qe1 {[%clk 0:02:53.8]} 7... e5 {[%clk 0:02:56.3]} 8. e4 {[%clk 0:02:51.6]} 8...
dxe4 {[%clk 0:02:56.1]} 9. dxe4 {[%clk 0:02:52.5]} 9... Be7 {[%clk 0:02:56.3]}
10. Nbd2 {[%clk 0:02:43.2]} 10... Qc7 {[%clk 0:02:56.2]} 11. Nh4 {[%clk
0:02:39]} 11... O-O {[%clk 0:02:51.3]} 12. Nf5 {[%clk 0:02:36.5]} 12... Bc5
{[%clk 0:02:48]} 13. a4 {[%clk 0:02:30.4]} 13... Rfe8 {[%clk 0:02:47.4]} 14. Nc4
{[%clk 0:02:26.3]} 14... b5 {[%clk 0:02:43.5]} 15. Na5 {[%clk 0:02:21.7]} 15...
Bf8 {[%clk 0:02:27.4]} 16. Kh1 {[%clk 0:01:50.7]} 16... Nc5 {[%clk 0:02:26.2]}
17. axb5 {[%clk 0:01:39.7]} 17... cxb5 {[%clk 0:02:26.2]} 18. Bg5 {[%clk
0:01:40.3]} 18... Nfd7 {[%clk 0:02:18.3]} 19. Be3 {[%clk 0:01:33.8]} 19... a6
{[%clk 0:01:58.4]} 20. Rc1 {[%clk 0:01:18.9]} 20... Rac8 {[%clk 0:01:46.5]} 21.
b4 {[%clk 0:01:17.9]} 21... Ne6 {[%clk 0:01:20.5]} 22. c4 {[%clk 0:01:17.3]}
22... bxc4 {[%clk 0:01:21]} 23. Rxc4 {[%clk 0:01:18.2]} 23... Qb8 {[%clk
0:01:18.6]} 24. Nc6 {[%clk 0:01:14.1]} 24... Qb5 {[%clk 0:01:09.9]} 25. Nce7+
{[%clk 0:01:10.3]} 25... Bxe7 {[%clk 0:01:07.6]} 26. Rxc8 {[%clk 0:00:55.7]}
26... Bd8 {[%clk 0:01:02.5]} 27. Nd6 {[%clk 0:00:55.7]} 1-0